[Event "Early-Titled-Tuesday-Blitz-September-05-2023"]
[Site "Chess.com"]
[Date "2023.09.05"]
[Round "5"]
[White "expii"]
[Black "leschebaza"]
[Result "1-0"]
[WhiteElo "2257"]
[BlackElo "2397"]
[TimeControl "180+1"]
[EndTime "8:57:45 PDT"]
[Termination "expii won on time"]

1. e4 {[%clk 0:03:00.9]} 1... e6 {[%clk 0:02:59.8]} 2. d4 {[%clk 0:02:55.9]}
2... d5 {[%clk 0:03:00.1]} 3. e5 {[%clk 0:02:55.4]} 3... c5 {[%clk 0:03:00.2]}
4. c3 {[%clk 0:02:55.9]} 4... Nc6 {[%clk 0:03:00.8]} 5. Nf3 {[%clk 0:02:55.1]}
5... Qb6 {[%clk 0:03:01.3]} 6. Be2 {[%clk 0:02:55.5]} 6... Nge7 {[%clk
0:02:57.3]} 7. Na3 {[%clk 0:02:54.6]} 7... Nf5 {[%clk 0:02:48.9]} 8. Nc2 {[%clk
0:02:54.8]} 8... Be7 {[%clk 0:02:46.9]} 9. O-O {[%clk 0:02:44.3]} 9... O-O
{[%clk 0:02:47.1]} 10. a3 {[%clk 0:02:36.9]} 10... cxd4 {[%clk 0:02:42.2]} 11.
cxd4 {[%clk 0:02:36.3]} 11... Bd7 {[%clk 0:02:29.9]} 12. Bd3 {[%clk 0:02:35.3]}
12... h6 {[%clk 0:02:19.8]} 13. Bxf5 {[%clk 0:02:32.7]} 13... exf5 {[%clk
0:02:20.7]} 14. b4 {[%clk 0:02:17.5]} 14... Be6 {[%clk 0:02:19.5]} 15. Bb2
{[%clk 0:01:51.3]} 15... a5 {[%clk 0:02:17.6]} 16. Bc3 {[%clk 0:01:44.4]} 16...
axb4 {[%clk 0:02:16.1]} 17. axb4 {[%clk 0:01:42.4]} 17... Rfc8 {[%clk
0:01:42.3]} 18. Qd2 {[%clk 0:01:34.6]} 18... Na7 {[%clk 0:01:27.6]} 19. Bb2
{[%clk 0:01:17]} 19... Nb5 {[%clk 0:01:18.5]} 20. Rxa8 {[%clk 0:01:14.7]} 20...
Rxa8 {[%clk 0:01:18.2]} 21. Ra1 {[%clk 0:01:12.5]} 21... Rxa1+ {[%clk
0:01:16.2]} 22. Bxa1 {[%clk 0:01:13.4]} 22... Qa7 {[%clk 0:01:08.8]} 23. Bc3
{[%clk 0:01:11.2]} 23... Qa2 {[%clk 0:01:05.9]} 24. h3 {[%clk 0:01:04.7]} 24...
Qc4 {[%clk 0:00:56]} 25. Bb2 {[%clk 0:00:46.1]} 25... Qb3 {[%clk 0:00:53.6]} 26.
Bc1 {[%clk 0:00:38.3]} 26... Nc3 {[%clk 0:00:36.4]} 27. Qd3 {[%clk 0:00:29.3]}
27... Qb1 {[%clk 0:00:36]} 28. Qd2 {[%clk 0:00:20.2]} 28... Ne4 {[%clk 0:00:35]}
29. Qd1 {[%clk 0:00:19]} 29... Bxb4 {[%clk 0:00:32.8]} 30. Nxb4 {[%clk
0:00:19.7]} 30... Qxb4 {[%clk 0:00:32.9]} 31. Be3 {[%clk 0:00:20.3]} 31... g5
{[%clk 0:00:30.2]} 32. Qc2 {[%clk 0:00:18.4]} 32... f4 {[%clk 0:00:29.2]} 33.
Bd2 {[%clk 0:00:17.3]} 33... Qc4 {[%clk 0:00:21.4]} 34. Qb2 {[%clk 0:00:13.8]}
34... b5 {[%clk 0:00:20.6]} 35. Qb4 {[%clk 0:00:11.9]} 35... Kg7 {[%clk
0:00:20.7]} 36. Be1 {[%clk 0:00:10.2]} 36... h5 {[%clk 0:00:20]} 37. Qe7 {[%clk
0:00:09]} 37... g4 {[%clk 0:00:19.5]} 38. Ng5 {[%clk 0:00:07.4]} 38... Qc6
{[%clk 0:00:13.1]} 39. Nxe4 {[%clk 0:00:06.9]} 39... dxe4 {[%clk 0:00:14]} 40.
Qf6+ {[%clk 0:00:07]} 40... Kg8 {[%clk 0:00:12.8]} 41. Qxf4 {[%clk 0:00:06.8]}
41... gxh3 {[%clk 0:00:11.9]} 42. Qg5+ {[%clk 0:00:06.5]} 42... Kf8 {[%clk
0:00:12.3]} 43. Qd8+ {[%clk 0:00:06.7]} 43... Qe8 {[%clk 0:00:11.5]} 44. Qf6
{[%clk 0:00:04.9]} 44... Qc8 {[%clk 0:00:09.8]} 45. Bd2 {[%clk 0:00:04.9]} 45...
Ke8 {[%clk 0:00:09.5]} 46. gxh3 {[%clk 0:00:04.4]} 46... Qc2 {[%clk 0:00:09.3]}
47. Bg5 {[%clk 0:00:04.2]} 47... Qc7 {[%clk 0:00:03.9]} 48. h4 {[%clk
0:00:03.9]} 48... Bg4 {[%clk 0:00:03.4]} 49. Qh8+ {[%clk 0:00:03.4]} 49... Kd7
{[%clk 0:00:03.5]} 50. Qf8 {[%clk 0:00:03.9]} 50... Kc6 {[%clk 0:00:03.8]} 51.
Qc5+ {[%clk 0:00:03.2]} 51... Kb7 {[%clk 0:00:03.5]} 52. Qxb5+ {[%clk
0:00:03.8]} 52... Kc8 {[%clk 0:00:04.2]} 53. Qe8+ {[%clk 0:00:03.1]} 53... Kb7
{[%clk 0:00:04.1]} 54. Qb5+ {[%clk 0:00:03.7]} 54... Ka8 {[%clk 0:00:03.9]} 55.
Qa6+ {[%clk 0:00:03.8]} 55... Kb8 {[%clk 0:00:04.1]} 56. Kh2 {[%clk 0:00:04.2]}
56... Qb7 {[%clk 0:00:03.9]} 57. Qd6+ {[%clk 0:00:03.9]} 57... Ka7 {[%clk
0:00:03.6]} 58. Be7 {[%clk 0:00:04.8]} 58... Qb3 {[%clk 0:00:02.8]} 59. Qc5+
{[%clk 0:00:04.7]} 59... Ka6 {[%clk 0:00:03.5]} 60. Qc6+ {[%clk 0:00:05.1]}
60... Ka5 {[%clk 0:00:04.1]} 61. Qxe4 {[%clk 0:00:05.2]} 61... Qf3 {[%clk
0:00:03.8]} 62. Qxf3 {[%clk 0:00:05]} 62... Bxf3 {[%clk 0:00:04.7]} 63. Kg3
{[%clk 0:00:05.8]} 63... Bd5 {[%clk 0:00:04.7]} 64. Kf4 {[%clk 0:00:06.4]} 64...
Kb6 {[%clk 0:00:05.4]} 65. Bf6 {[%clk 0:00:06.7]} 65... Kc6 {[%clk 0:00:06]} 66.
Kg5 {[%clk 0:00:07.3]} 66... Bf3 {[%clk 0:00:06.3]} 67. Kf4 {[%clk 0:00:08]}
67... Bd1 {[%clk 0:00:07.2]} 68. Ke3 {[%clk 0:00:08.3]} 68... Kd5 {[%clk
0:00:08.1]} 69. f4 {[%clk 0:00:08.7]} 69... Bg4 {[%clk 0:00:08.6]} 70. Bg5
{[%clk 0:00:09]} 70... Bf5 {[%clk 0:00:09.1]} 71. Be7 {[%clk 0:00:08.3]} 71...
Be4 {[%clk 0:00:09.7]} 72. Bc5 {[%clk 0:00:09.2]} 72... Bf5 {[%clk 0:00:10.3]}
73. Kd2 {[%clk 0:00:09.4]} 73... Ke4 {[%clk 0:00:09.9]} 74. Kc3 {[%clk
0:00:09.7]} 74... Kxf4 {[%clk 0:00:10.3]} 75. Be7 {[%clk 0:00:10.3]} 75... Be6
{[%clk 0:00:10.9]} 76. Kb4 {[%clk 0:00:10.4]} 76... Ke4 {[%clk 0:00:11.4]} 77.
Kc5 {[%clk 0:00:10.9]} 77... Bd5 {[%clk 0:00:11.1]} 78. Bg5 {[%clk 0:00:10.8]}
78... Be6 {[%clk 0:00:11.2]} 79. Kd6 {[%clk 0:00:09.3]} 79... Kxd4 {[%clk
0:00:10.7]} 80. Bf6 {[%clk 0:00:10.2]} 80... Ke4 {[%clk 0:00:11.3]} 81. Ke7
{[%clk 0:00:11.1]} 81... Kf5 {[%clk 0:00:11.9]} 82. Kf8 {[%clk 0:00:12]} 82...
Kg4 {[%clk 0:00:12.3]} 83. Kg7 {[%clk 0:00:12.9]} 83... Kf4 {[%clk 0:00:12.5]}
84. Kh6 {[%clk 0:00:13.8]} 84... Kg4 {[%clk 0:00:13.2]} 85. Kg7 {[%clk
0:00:14.7]} 85... Bd5 {[%clk 0:00:13.8]} 86. Kh6 {[%clk 0:00:15.6]} 86... Bc4
{[%clk 0:00:14.5]} 87. Kg7 {[%clk 0:00:16.5]} 87... Bb3 {[%clk 0:00:14.8]} 88.
Kh6 {[%clk 0:00:17.4]} 88... Bd1 {[%clk 0:00:12.7]} 89. Kg7 {[%clk 0:00:18.3]}
89... Bb3 {[%clk 0:00:13.3]} 90. Kh6 {[%clk 0:00:19.2]} 90... Ba2 {[%clk
0:00:13.8]} 91. Kg7 {[%clk 0:00:20.1]} 91... Kf5 {[%clk 0:00:13.3]} 92. Kf8
{[%clk 0:00:21]} 92... Kg6 {[%clk 0:00:12.8]} 93. Ke7 {[%clk 0:00:21.9]} 93...
Bd5 {[%clk 0:00:12.9]} 94. Kf8 {[%clk 0:00:22.8]} 94... Be4 {[%clk 0:00:13.5]}
95. Ke7 {[%clk 0:00:23]} 95... Bf5 {[%clk 0:00:14.1]} 96. Kd6 {[%clk 0:00:23.9]}
96... Be6 {[%clk 0:00:13.9]} 97. Kc5 {[%clk 0:00:24.8]} 97... Kf5 {[%clk
0:00:14.2]} 98. Kb6 {[%clk 0:00:25.7]} 98... Ke4 {[%clk 0:00:14.6]} 99. Kc7
{[%clk 0:00:26.6]} 99... Kd5 {[%clk 0:00:15.5]} 100. Kd8 {[%clk 0:00:26.6]}
100... Kc6 {[%clk 0:00:16]} 101. Ke7 {[%clk 0:00:27.2]} 101... Kc7 {[%clk
0:00:15.7]} 102. Kf8 {[%clk 0:00:28.1]} 102... Kd7 {[%clk 0:00:16.2]} 103. Kg7
{[%clk 0:00:29]} 103... Ke8 {[%clk 0:00:15.6]} 104. Kh6 {[%clk 0:00:29.9]}
104... Bg4 {[%clk 0:00:16.3]} 105. Kg5 {[%clk 0:00:30.2]} 105... Kd7 {[%clk
0:00:16.7]} 106. Kh6 {[%clk 0:00:30.3]} 106... Ke6 {[%clk 0:00:17.2]} 107. Kg5
{[%clk 0:00:30.7]} 107... Be2 {[%clk 0:00:16.9]} 108. Kf4 {[%clk 0:00:31]}
108... Bd1 {[%clk 0:00:16.7]} 109. Ke3 {[%clk 0:00:31.9]} 109... Bg4 {[%clk
0:00:16.6]} 110. Kd2 {[%clk 0:00:32.4]} 110... Bf5 {[%clk 0:00:17.2]} 111. Kc3
{[%clk 0:00:33.3]} 111... Bg6 {[%clk 0:00:18.1]} 112. Kb4 {[%clk 0:00:33.9]}
112... Kf5 {[%clk 0:00:18.8]} 113. Kc5 {[%clk 0:00:34.8]} 113... Kg4 {[%clk
0:00:19.7]} 114. Kb6 {[%clk 0:00:35.7]} 114... Kf5 {[%clk 0:00:20.3]} 115. Kc7
{[%clk 0:00:36.6]} 115... Ke6 {[%clk 0:00:21.2]} 116. Kc6 {[%clk 0:00:36.9]}
116... Kf5 {[%clk 0:00:21.5]} 117. Kd6 {[%clk 0:00:37.2]} 117... Ke4 {[%clk
0:00:21.1]} 118. Bg5 {[%clk 0:00:37]} 118... Kf5 {[%clk 0:00:21.3]} 119. Bf6
{[%clk 0:00:37.2]} 119... Ke4 {[%clk 0:00:21.5]} 120. Ke7 {[%clk 0:00:37.8]}
120... Kf5 {[%clk 0:00:21.6]} 121. Bg7 {[%clk 0:00:36.3]} 121... Ke4 {[%clk
0:00:21.3]} 122. Bf6 {[%clk 0:00:36.1]} 122... Kf5 {[%clk 0:00:21.7]} 123. Kf8
{[%clk 0:00:36.7]} 123... Kg4 {[%clk 0:00:21.4]} 124. Kg7 {[%clk 0:00:36.8]}
124... Kf5 {[%clk 0:00:20.4]} 125. Kh6 {[%clk 0:00:37.4]} 125... Ke6 {[%clk
0:00:20.3]} 126. Kg5 {[%clk 0:00:36.4]} 126... Bf5 {[%clk 0:00:20.4]} 127. Kxh5
{[%clk 0:00:35.6]} 127... Bg6+ {[%clk 0:00:21.1]} 128. Kg5 {[%clk 0:00:35.2]}
128... Bb1 {[%clk 0:00:21.6]} 129. Kh6 {[%clk 0:00:33.2]} 129... Kd7 {[%clk
0:00:21.5]} 130. Kg7 {[%clk 0:00:31.8]} 130... Ke8 {[%clk 0:00:22]} 131. h5
{[%clk 0:00:31.8]} 131... Kd7 {[%clk 0:00:21]} 132. h6 {[%clk 0:00:32.1]} 132...
Ke6 {[%clk 0:00:20.7]} 133. h7 {[%clk 0:00:33]} 133... Bxh7 {[%clk 0:00:20.1]}
134. Kxh7 {[%clk 0:00:33.9]} 1-0

[Event "Early-Titled-Tuesday-Blitz-September-05-2023"]
[Site "Chess.com"]
[Date "2023.09.05"]
[Round "5"]
[White "Vaibhavraut99"]
[Black "Kirill_Klukin"]
[Result "1/2-1/2"]
[WhiteElo "2576"]
[BlackElo "2792"]
[TimeControl "180+1"]
[EndTime "8:58:32 PDT"]
[Termination "Game drawn by repetition"]

1. e4 {[%clk 0:03:00.9]} 1... c5 {[%clk 0:02:59.7]} 2. Nc3 {[%clk 0:03:00.1]}
2... g6 {[%clk 0:02:58.9]} 3. g3 {[%clk 0:02:59.9]} 3... Bg7 {[%clk 0:02:59]} 4.
Bg2 {[%clk 0:03:00.5]} 4... Nc6 {[%clk 0:02:59.8]} 5. d3 {[%clk 0:03:00.4]} 5...
e6 {[%clk 0:03:00]} 6. Nge2 {[%clk 0:03:00.2]} 6... Nge7 {[%clk 0:03:00]} 7. Be3
{[%clk 0:03:00.2]} 7... Nd4 {[%clk 0:02:59]} 8. O-O {[%clk 0:02:58.7]} 8... O-O
{[%clk 0:02:58.1]} 9. Qd2 {[%clk 0:02:58.2]} 9... d5 {[%clk 0:02:55.4]} 10. exd5
{[%clk 0:02:50]} 10... Nxd5 {[%clk 0:02:53.7]} 11. Nxd5 {[%clk 0:02:48.5]} 11...
exd5 {[%clk 0:02:54.1]} 12. Nxd4 {[%clk 0:02:44.5]} 12... cxd4 {[%clk
0:02:49.7]} 13. Bg5 {[%clk 0:02:44.2]} 13... Bf6 {[%clk 0:02:41.7]} 14. Bxf6
{[%clk 0:02:40.9]} 14... Qxf6 {[%clk 0:02:41.4]} 15. Bxd5 {[%clk 0:02:41.4]}
15... Bh3 {[%clk 0:02:23.8]} 16. Rfe1 {[%clk 0:02:39.5]} 16... Rfd8 {[%clk
0:02:22.7]} 17. Bg2 {[%clk 0:02:29.2]} 17... Bxg2 {[%clk 0:02:21.5]} 18. Kxg2
{[%clk 0:02:30.1]} 18... Rac8 {[%clk 0:02:22.1]} 19. Kg1 {[%clk 0:02:28.9]}
19... Rc6 {[%clk 0:02:20.1]} 20. Re4 {[%clk 0:02:22.5]} 20... Rdc8 {[%clk
0:02:19]} 21. Rc1 {[%clk 0:02:17.7]} 21... h5 {[%clk 0:02:16.1]} 22. Qh6 {[%clk
0:02:13.2]} 22... Re6 {[%clk 0:01:43.4]} 23. Rce1 {[%clk 0:02:09.7]} 23... Rxc2
{[%clk 0:01:38.7]} 24. f4 {[%clk 0:01:42.8]} 24... Qf5 {[%clk 0:00:53.2]} 25.
Rxe6 {[%clk 0:01:33.4]} 25... fxe6 {[%clk 0:00:53]} 26. Qg5 {[%clk 0:01:23.7]}
26... Qxg5 {[%clk 0:00:51.1]} 27. fxg5 {[%clk 0:01:24.6]} 27... Kf7 {[%clk
0:00:51.4]} 28. Rf1+ {[%clk 0:01:24.9]} 28... Kg7 {[%clk 0:00:28.6]} 29. Rf6
{[%clk 0:01:21.3]} 29... Re2 {[%clk 0:00:27.7]} 30. b4 {[%clk 0:01:21]} 30... b5
{[%clk 0:00:24.8]} 31. a3 {[%clk 0:01:21]} 31... Re3 {[%clk 0:00:22.6]} 32. Kg2
{[%clk 0:01:17.2]} 32... Rxd3 {[%clk 0:00:19.9]} 33. Rxe6 {[%clk 0:01:17.5]}
33... Rxa3 {[%clk 0:00:20.6]} 34. Re7+ {[%clk 0:01:13.7]} 34... Kf8 {[%clk
0:00:20.5]} 35. Rd7 {[%clk 0:01:14.2]} 35... d3 {[%clk 0:00:20.2]} 36. Kh3
{[%clk 0:01:12]} 36... a6 {[%clk 0:00:19]} 37. Kg2 {[%clk 0:01:02.4]} 37... Rb3
{[%clk 0:00:18.7]} 38. Rd6 {[%clk 0:00:57.9]} 38... Kf7 {[%clk 0:00:19]} 39. Kf2
{[%clk 0:00:55.5]} 39... Rxb4 {[%clk 0:00:17.1]} 40. Rxa6 {[%clk 0:00:54]} 40...
Rd4 {[%clk 0:00:14.1]} 41. Rf6+ {[%clk 0:00:49.3]} 41... Kg7 {[%clk 0:00:13.2]}
42. Ke1 {[%clk 0:00:48.2]} 42... d2+ {[%clk 0:00:13.6]} 43. Kd1 {[%clk
0:00:48.7]} 43... b4 {[%clk 0:00:13.4]} 44. Rb6 {[%clk 0:00:46.7]} 44... Kf7
{[%clk 0:00:13.5]} 45. Rf6+ {[%clk 0:00:41.2]} 45... Kg7 {[%clk 0:00:13.7]} 46.
Rb6 {[%clk 0:00:33.8]} 46... h4 {[%clk 0:00:12.5]} 47. gxh4 {[%clk 0:00:31.5]}
47... Rxh4 {[%clk 0:00:11.9]} 48. Kxd2 {[%clk 0:00:32.1]} 48... Rxh2+ {[%clk
0:00:12.5]} 49. Kd3 {[%clk 0:00:26.5]} 49... b3 {[%clk 0:00:07.4]} 50. Ke4
{[%clk 0:00:08.6]} 50... b2 {[%clk 0:00:07.3]} 51. Ke5 {[%clk 0:00:06.9]} 51...
Rf2 {[%clk 0:00:06.8]} 52. Ke4 {[%clk 0:00:06.4]} 52... Kf7 {[%clk 0:00:06.4]}
53. Ke3 {[%clk 0:00:05.2]} 53... Rh2 {[%clk 0:00:06.7]} 54. Ke4 {[%clk
0:00:05.4]} 54... Ke7 {[%clk 0:00:07]} 55. Kd3 {[%clk 0:00:05.2]} 55... Rg2
{[%clk 0:00:05.9]} 56. Ke4 {[%clk 0:00:04.1]} 56... Kd7 {[%clk 0:00:05.8]} 57.
Kd3 {[%clk 0:00:03.9]} 57... Kc7 {[%clk 0:00:06.1]} 58. Rb4 {[%clk 0:00:04.4]}
58... Kd6 {[%clk 0:00:06.1]} 59. Ke3 {[%clk 0:00:03.3]} 59... Ke5 {[%clk
0:00:06.3]} 60. Rb5+ {[%clk 0:00:03.1]} 60... Ke6 {[%clk 0:00:06.1]} 61. Kf3
{[%clk 0:00:03.7]} 61... Rc2 {[%clk 0:00:05.7]} 62. Ke3 {[%clk 0:00:03.9]} 62...
Kd6 {[%clk 0:00:03.2]} 63. Kd3 {[%clk 0:00:04.3]} 63... Rg2 {[%clk 0:00:03.9]}
64. Kc3 {[%clk 0:00:03]} 64... Ke6 {[%clk 0:00:03.4]} 65. Kd3 {[%clk 0:00:03.6]}
65... Rg3+ {[%clk 0:00:03.6]} 66. Ke4 {[%clk 0:00:03.7]} 66... Rg4+ {[%clk
0:00:03.7]} 67. Kf3 {[%clk 0:00:03.3]} 67... Rxg5 {[%clk 0:00:03.4]} 68. Rxb2
{[%clk 0:00:03.2]} 68... Rf5+ {[%clk 0:00:04]} 69. Kg3 {[%clk 0:00:03.7]} 69...
Kf6 {[%clk 0:00:04.5]} 70. Rb6+ {[%clk 0:00:03.9]} 70... Kg5 {[%clk 0:00:04.8]}
71. Rb3 {[%clk 0:00:04.6]} 71... Ra5 {[%clk 0:00:04.9]} 72. Rc3 {[%clk
0:00:04.9]} 72... Re5 {[%clk 0:00:05.4]} 73. Rb3 {[%clk 0:00:05.3]} 73... Kf5
{[%clk 0:00:05.7]} 74. Rf3+ {[%clk 0:00:05.1]} 74... Kg5 {[%clk 0:00:06.3]} 75.
Ra3 {[%clk 0:00:05.3]} 75... Rf5 {[%clk 0:00:07.2]} 76. Ra4 {[%clk 0:00:04.9]}
76... Kh5 {[%clk 0:00:06.9]} 77. Rh4+ {[%clk 0:00:04.9]} 77... Kg5 {[%clk
0:00:07.1]} 78. Rg4+ {[%clk 0:00:05.1]} 78... Kf6 {[%clk 0:00:07.8]} 79. Ra4
{[%clk 0:00:06]} 79... Rb5 {[%clk 0:00:08.2]} 80. Kf4 {[%clk 0:00:04.6]} 80...
Kg7 {[%clk 0:00:07.1]} 81. Ra7+ {[%clk 0:00:04.1]} 81... Kh6 {[%clk 0:00:07.3]}
82. Ra4 {[%clk 0:00:04.6]} 82... Kh5 {[%clk 0:00:07.6]} 83. Kg3 {[%clk
0:00:03.8]} 83... Rb3+ {[%clk 0:00:07.4]} 84. Kg2 {[%clk 0:00:04.4]} 84... g5
{[%clk 0:00:07.7]} 85. Rc4 {[%clk 0:00:03.9]} 85... Rb2+ {[%clk 0:00:07.1]} 86.
Kg3 {[%clk 0:00:04]} 86... Rb3+ {[%clk 0:00:07.7]} 87. Kg2 {[%clk 0:00:04.6]}
87... g4 {[%clk 0:00:08.1]} 88. Rc5+ {[%clk 0:00:04.5]} 88... Kh4 {[%clk
0:00:08.6]} 89. Rc2 {[%clk 0:00:04.9]} 89... Re3 {[%clk 0:00:08.3]} 90. Ra2
{[%clk 0:00:03.3]} 90... Rg3+ {[%clk 0:00:09]} 91. Kh2 {[%clk 0:00:03.2]} 91...
Rh3+ {[%clk 0:00:09.9]} 92. Kg2 {[%clk 0:00:03.8]} 92... Rc3 {[%clk 0:00:10.8]}
93. Kh2 {[%clk 0:00:03.3]} 93... Rc4 {[%clk 0:00:10.3]} 94. Kg2 {[%clk
0:00:03.7]} 94... Kg5 {[%clk 0:00:11.1]} 95. Kh2 {[%clk 0:00:04]} 95... Kf4
{[%clk 0:00:11.8]} 96. Kg2 {[%clk 0:00:04.5]} 96... Rc3 {[%clk 0:00:12.4]} 97.
Ra4+ {[%clk 0:00:04.5]} 97... Kg5 {[%clk 0:00:13.1]} 98. Ra2 {[%clk 0:00:05.1]}
98... Kh4 {[%clk 0:00:13.9]} 99. Rb2 {[%clk 0:00:04.3]} 99... Rh3 {[%clk
0:00:14.8]} 100. Ra2 {[%clk 0:00:03.1]} 100... Re3 {[%clk 0:00:14.9]} 101. Rb2
{[%clk 0:00:02.5]} 101... Rg3+ {[%clk 0:00:15.8]} 102. Kh2 {[%clk 0:00:02.3]}
102... Rc3 {[%clk 0:00:16.7]} 103. Kg2 {[%clk 0:00:02.4]} 103... Kg5 {[%clk
0:00:17.4]} 104. Rb5+ {[%clk 0:00:02.6]} 104... Kf4 {[%clk 0:00:17.4]} 105. Rb4+
{[%clk 0:00:02.8]} 105... Kf5 {[%clk 0:00:18.1]} 106. Rb5+ {[%clk 0:00:03]}
106... Kg6 {[%clk 0:00:18.7]} 107. Rb2 {[%clk 0:00:03.9]} 107... Ra3 {[%clk
0:00:18.6]} 108. Rb5 {[%clk 0:00:03.3]} 108... Kh6 {[%clk 0:00:18.6]} 109. Kf2
{[%clk 0:00:03.7]} 109... Rf3+ {[%clk 0:00:18.9]} 110. Kg2 {[%clk 0:00:04.2]}
110... Kg6 {[%clk 0:00:19.7]} 111. Rc5 {[%clk 0:00:04.6]} 111... Re3 {[%clk
0:00:19.8]} 112. Kf2 {[%clk 0:00:04.6]} 112... Rb3 {[%clk 0:00:19.9]} 113. Kg2
{[%clk 0:00:04.5]} 113... Kf6 {[%clk 0:00:20.4]} 114. Rc4 {[%clk 0:00:04.7]}
114... Kg5 {[%clk 0:00:20.2]} 115. Ra4 {[%clk 0:00:05.2]} 115... Rb2+ {[%clk
0:00:20]} 116. Kg3 {[%clk 0:00:05.3]} 116... Rb3+ {[%clk 0:00:20.4]} 117. Kg2
{[%clk 0:00:05.9]} 117... Kh4 {[%clk 0:00:21.1]} 118. Ra2 {[%clk 0:00:05.7]}
118... Rh3 {[%clk 0:00:21.7]} 119. Rb2 {[%clk 0:00:05.5]} 119... Rg3+ {[%clk
0:00:22.1]} 120. Kh2 {[%clk 0:00:05.9]} 120... Rd3 {[%clk 0:00:22.4]} 121. Rc2
{[%clk 0:00:06.1]} 121... Rd4 {[%clk 0:00:22.3]} 122. Kg2 {[%clk 0:00:06.5]}
122... Rf4 {[%clk 0:00:22.5]} 123. Ra2 {[%clk 0:00:06.7]} 123... g3 {[%clk
0:00:22.7]} 124. Rb2 {[%clk 0:00:06.4]} 124... Kg4 {[%clk 0:00:23.2]} 125. Rc2
{[%clk 0:00:06.8]} 125... Rd4 {[%clk 0:00:23.5]} 126. Ra2 {[%clk 0:00:07]}
126... Rc4 {[%clk 0:00:24.2]} 127. Rb2 {[%clk 0:00:07.4]} 127... Ra4 {[%clk
0:00:24.7]} 128. Rd2 {[%clk 0:00:07.8]} 128... Re4 {[%clk 0:00:25.1]} 129. Rc2
{[%clk 0:00:08.3]} 129... Rd4 {[%clk 0:00:25.6]} 130. Ra2 {[%clk 0:00:08.7]}
130... Rb4 {[%clk 0:00:25.9]} 131. Rd2 {[%clk 0:00:09.1]} 131... Kf4 {[%clk
0:00:26.3]} 132. Rc2 {[%clk 0:00:08.9]} 132... Rd4 {[%clk 0:00:26.6]} 133. Ra2
{[%clk 0:00:09.1]} 133... Rb4 {[%clk 0:00:26.8]} 134. Rc2 {[%clk 0:00:09.3]}
134... Ke3 {[%clk 0:00:27.2]} 135. Rc3+ {[%clk 0:00:08.9]} 135... Kf4 {[%clk
0:00:27.2]} 136. Rc2 {[%clk 0:00:09.2]} 1/2-1/2

[Event "Early-Titled-Tuesday-Blitz-September-05-2023"]
[Site "Chess.com"]
[Date "2023.09.05"]
[Round "6"]
[White "ChessWarrior3"]
[Black "blitzo_vich"]
[Result "0-1"]
[WhiteElo "2433"]
[BlackElo "2621"]
[TimeControl "180+1"]
[EndTime "9:00:51 PDT"]
[Termination "blitzo_vich won by resignation"]

1. e4 {[%clk 0:03:00.9]} 1... c5 {[%clk 0:02:58.6]} 2. Nf3 {[%clk 0:02:59.4]}
2... e6 {[%clk 0:02:56.7]} 3. Nc3 {[%clk 0:02:58.6]} 3... Qc7 {[%clk 0:02:54.5]}
4. a3 {[%clk 0:02:54.4]} 4... Nc6 {[%clk 0:02:53.2]} 5. d4 {[%clk 0:02:54]} 5...
cxd4 {[%clk 0:02:52.5]} 6. Nxd4 {[%clk 0:02:54.9]} 6... a6 {[%clk 0:02:52.2]} 7.
Be3 {[%clk 0:02:52.7]} 7... b5 {[%clk 0:02:48.1]} 8. Qd2 {[%clk 0:02:50.5]} 8...
Nf6 {[%clk 0:02:46.9]} 9. Nxc6 {[%clk 0:02:50]} 9... dxc6 {[%clk 0:02:10.9]} 10.
O-O-O {[%clk 0:02:43.5]} 10... b4 {[%clk 0:02:09.1]} 11. Bf4 {[%clk 0:02:39.7]}
11... bxc3 {[%clk 0:02:06.4]} 12. Qd4 {[%clk 0:02:31.1]} 12... Qxf4+ {[%clk
0:02:04.7]} 0-1

[Event "Early-Titled-Tuesday-Blitz-September-05-2023"]
[Site "Chess.com"]
[Date "2023.09.05"]
[Round "6"]
[White "isla88"]
[Black "KatakuriDono"]
[Result "1-0"]
[WhiteElo "2488"]
[BlackElo "2323"]
[TimeControl "180+1"]
[EndTime "9:01:35 PDT"]
[Termination "isla88 won by resignation"]

1. d4 {[%clk 0:03:00.9]} 1... d5 {[%clk 0:02:59.3]} 2. Nf3 {[%clk 0:02:59.4]}
2... Nf6 {[%clk 0:02:58.8]} 3. Bf4 {[%clk 0:02:59.8]} 3... c5 {[%clk 0:02:56.9]}
4. e3 {[%clk 0:02:59.4]} 4... Nc6 {[%clk 0:02:57.2]} 5. Nbd2 {[%clk 0:02:58.6]}
5... e6 {[%clk 0:02:56.4]} 6. c3 {[%clk 0:02:57.1]} 6... cxd4 {[%clk 0:02:56.7]}
7. exd4 {[%clk 0:02:56.2]} 7... Nh5 {[%clk 0:02:56.8]} 8. Be3 {[%clk 0:02:55.5]}
8... Bd6 {[%clk 0:02:56.5]} 9. g3 {[%clk 0:02:54.9]} 9... O-O {[%clk 0:02:53]}
10. Bg2 {[%clk 0:02:54.5]} 10... f5 {[%clk 0:02:51.8]} 11. Ne5 {[%clk 0:02:49]}
11... g6 {[%clk 0:02:49]} 12. f4 {[%clk 0:02:46.6]} 12... Nf6 {[%clk 0:02:41.6]}
13. O-O {[%clk 0:02:45.2]} 13... Bxe5 {[%clk 0:02:31.3]} 14. dxe5 {[%clk
0:02:41]} 14... Ne4 {[%clk 0:02:21.6]} 15. Nxe4 {[%clk 0:02:37.5]} 15... fxe4
{[%clk 0:02:12.4]} 16. Bd4 {[%clk 0:02:23]} 16... b6 {[%clk 0:02:10.3]} 17. Qg4
{[%clk 0:02:17.3]} 17... Ba6 {[%clk 0:02:06.2]} 18. Qxe6+ {[%clk 0:02:15.5]}
18... Kh8 {[%clk 0:02:01.8]} 19. Qxc6 {[%clk 0:02:13.1]} 19... Bxf1 {[%clk
0:02:01.9]} 20. e6+ {[%clk 0:02:12]} 20... Kg8 {[%clk 0:02:01.5]} 21. Rxf1
{[%clk 0:02:08.1]} 1-0

[Event "Early-Titled-Tuesday-Blitz-September-05-2023"]
[Site "Chess.com"]
[Date "2023.09.05"]
[Round "6"]
[White "merinasian"]
[Black "Brave_spirit12"]
[Result "0-1"]
[WhiteElo "2432"]
[BlackElo "2794"]
[TimeControl "180+1"]
[EndTime "9:01:40 PDT"]
[Termination "Brave_spirit12 won by resignation"]

1. d4 {[%clk 0:03:00.9]} 1... Nf6 {[%clk 0:02:52.5]} 2. Nf3 {[%clk 0:02:59.5]}
2... e6 {[%clk 0:02:51.9]} 3. g3 {[%clk 0:02:58.3]} 3... d5 {[%clk 0:02:51.2]}
4. Bg2 {[%clk 0:02:58.4]} 4... Be7 {[%clk 0:02:51.6]} 5. O-O {[%clk 0:02:58.6]}
5... O-O {[%clk 0:02:52.5]} 6. c4 {[%clk 0:02:58.9]} 6... c6 {[%clk 0:02:52.4]}
7. Qc2 {[%clk 0:02:56.5]} 7... b6 {[%clk 0:02:52]} 8. Nbd2 {[%clk 0:02:56.4]}
8... Bb7 {[%clk 0:02:51.3]} 9. e4 {[%clk 0:02:56.5]} 9... Na6 {[%clk 0:02:51.2]}
10. cxd5 {[%clk 0:02:47.8]} 10... cxd5 {[%clk 0:02:49.9]} 11. e5 {[%clk
0:02:48.2]} 11... Nd7 {[%clk 0:02:47.5]} 12. a3 {[%clk 0:02:43.7]} 12... Rc8
{[%clk 0:02:47.3]} 13. Qd1 {[%clk 0:02:43]} 13... Ndb8 {[%clk 0:02:40.6]} 14.
Nb1 {[%clk 0:02:39.9]} 14... Nc6 {[%clk 0:02:40.5]} 15. Nc3 {[%clk 0:02:40]}
15... Na5 {[%clk 0:02:40.5]} 16. h4 {[%clk 0:02:37.4]} 16... Qd7 {[%clk
0:02:36.5]} 17. h5 {[%clk 0:02:17.1]} 17... h6 {[%clk 0:02:29.1]} 18. Qe2 {[%clk
0:02:14.3]} 18... Nc7 {[%clk 0:02:25.7]} 19. Re1 {[%clk 0:02:09.3]} 19... Ba6
{[%clk 0:02:25.4]} 20. Qe3 {[%clk 0:02:09.4]} 20... Nb5 {[%clk 0:02:25.6]} 21.
Nxb5 {[%clk 0:02:06.8]} 21... Qxb5 {[%clk 0:02:26.5]} 22. Qf4 {[%clk 0:02:06.6]}
22... Nb3 {[%clk 0:02:22.9]} 23. Be3 {[%clk 0:02:05.2]} 23... Nxa1 {[%clk
0:02:22.3]} 24. Rxa1 {[%clk 0:02:03.9]} 24... Qxb2 {[%clk 0:02:22.4]} 25. Rf1
{[%clk 0:02:04.4]} 25... Bxf1 {[%clk 0:02:21.9]} 26. Bxf1 {[%clk 0:02:04.6]}
26... Qb1 {[%clk 0:02:21.1]} 27. Qg4 {[%clk 0:02:03.9]} 27... Qf5 {[%clk
0:02:20.8]} 0-1